[Event "Titled Tuesday Blitz April 19 Late 2022"]
[White "Chigaev, Maksim"]
[Black "Bluebaum, Matthias"]
[WhiteFideId "4108116"]
[BlackFideId "24651516"]
[WhiteElo "2478"]
[BlackElo "2550"]
[Result "1-0"]
[Round "08"]
[TimeControl "180+1"]
[Date "2022.04.19"]
[WhiteClock "0:00:13"]
[BlackClock "0:00:02"]

1. d4 {[%clk 0:03:00]}  Nf6 {[%clk 0:02:59]} 2. c4 {[%clk 0:03:00]}  e6 {[%clk 0:03:00]} 3. Nf3 {[%clk 0:03:00]}  d5 {[%clk 0:03:00]} 4. g3 {[%clk 0:03:00]}  Bb4+ {[%clk 0:02:59]} 5. Nbd2 {[%clk 0:03:00]}  dxc4 {[%clk 0:02:56]} 6. Bg2 {[%clk 0:03:00]}  b5 {[%clk 0:02:57]} 7. a3 {[%clk 0:02:59]}  Bxd2+ {[%clk 0:02:55]} 8. Nxd2 {[%clk 0:02:42]}  Nd5 {[%clk 0:02:45]} 9. a4 {[%clk 0:02:32]}  c6 {[%clk 0:02:40]} 10. O-O {[%clk 0:02:32]}  Bb7 {[%clk 0:02:34]} 11. e4 {[%clk 0:02:21]}  Ne7 {[%clk 0:02:34]} 12. Qg4 {[%clk 0:02:15]}  Qxd4 {[%clk 0:02:11]} 13. Nf3 {[%clk 0:02:15]}  h5 {[%clk 0:01:59]} 14. Qf4 {[%clk 0:01:39]}  Qd8 {[%clk 0:01:53]} 15. Ng5 {[%clk 0:01:26]}  Rf8 {[%clk 0:01:40]} 16. e5 {[%clk 0:01:16]}  Nd5 {[%clk 0:01:34]} 17. Qf3 {[%clk 0:01:11]}  Nd7 {[%clk 0:01:33]} 18. Qxh5 {[%clk 0:01:10]}  Qe7 {[%clk 0:01:31]} 19. Ne4 {[%clk 0:01:04]}  O-O-O {[%clk 0:01:23]} 20. axb5 {[%clk 0:01:00]}  cxb5 {[%clk 0:01:22]} 21. Nd6+ {[%clk 0:00:59]}  Kb8 {[%clk 0:01:22]} 22. Nxb5 {[%clk 0:00:57]}  Nc5 {[%clk 0:01:14]} 23. Nd6 {[%clk 0:00:47]}  Bc6 {[%clk 0:00:49]} 24. Bxd5 {[%clk 0:00:30]}  Bxd5 {[%clk 0:00:41]} 25. Be3 {[%clk 0:00:31]}  Rh8 {[%clk 0:00:41]} 26. Qg4 {[%clk 0:00:17]}  Rxh2 {[%clk 0:00:41]} 27. f3 {[%clk 0:00:17]}  Rdh8 {[%clk 0:00:22]} 28. Bxc5 {[%clk 0:00:17]}  Qc7 {[%clk 0:00:09]} 29. Bxa7+ {[%clk 0:00:12]}  Qxa7+ {[%clk 0:00:06]} 30. Rxa7 {[%clk 0:00:13]}  Kxa7 {[%clk 0:00:04]} 31. Qd4+ {[%clk 0:00:13]}  Kb8 {[%clk 0:00:01]} 32. Qb6+ {[%clk 0:00:13]}  Ka8 {[%clk 0:00:02]} 33. Ra1# {[%clk 0:00:13]} 1-0


[Site "https://www.chess.com"]

[Event "Titled Tuesday Blitz April 19 Late 2022"]
[White "Derraugh, Geordie"]
[Black "Saraci, Nderim"]
[WhiteFideId "2603950"]
[BlackFideId "6351921"]
[WhiteElo "2116"]
[BlackElo "2553"]
[Result "0-1"]
[Round "08"]
[TimeControl "180+1"]
[Date "2022.04.19"]
[WhiteClock "0:00:06"]
[BlackClock "0:00:18"]

1. e4 {[%clk 0:03:00]}  e5 {[%clk 0:02:51]} 2. Nf3 {[%clk 0:02:59]}  Nc6 {[%clk 0:02:51]} 3. d4 {[%clk 0:02:58]}  exd4 {[%clk 0:02:51]} 4. Bc4 {[%clk 0:02:57]}  Bc5 {[%clk 0:02:48]} 5. c3 {[%clk 0:02:57]}  Nf6 {[%clk 0:02:48]} 6. cxd4 {[%clk 0:02:56]}  Bb4+ {[%clk 0:02:48]} 7. Bd2 {[%clk 0:02:56]}  Bxd2+ {[%clk 0:02:44]} 8. Nbxd2 {[%clk 0:02:56]}  d5 {[%clk 0:02:45]} 9. exd5 {[%clk 0:02:56]}  Nxd5 {[%clk 0:02:45]} 10. Qb3 {[%clk 0:02:56]}  Na5 {[%clk 0:02:45]} 11. Qa4+ {[%clk 0:02:56]}  Nc6 {[%clk 0:02:45]} 12. Qb3 {[%clk 0:02:56]}  Nce7 {[%clk 0:02:45]} 13. O-O {[%clk 0:02:56]}  O-O {[%clk 0:02:43]} 14. Rfe1 {[%clk 0:02:56]}  c6 {[%clk 0:02:34]} 15. Rad1 {[%clk 0:02:50]}  Nb6 {[%clk 0:02:27]} 16. Bd3 {[%clk 0:02:50]}  Be6 {[%clk 0:02:14]} 17. Qc2 {[%clk 0:02:48]}  h6 {[%clk 0:02:12]} 18. Ne4 {[%clk 0:02:45]}  Bd5 {[%clk 0:02:08]} 19. Ne5 {[%clk 0:02:41]}  Bxe4 {[%clk 0:02:00]} 20. Bxe4 {[%clk 0:02:41]}  Ned5 {[%clk 0:02:01]} 21. Rd3 {[%clk 0:02:24]}  Nb4 {[%clk 0:01:56]} 22. Qb3 {[%clk 0:02:14]}  Nxd3 {[%clk 0:01:51]} 23. Qxd3 {[%clk 0:02:15]}  Qd6 {[%clk 0:01:44]} 24. Re3 {[%clk 0:02:12]}  Rad8 {[%clk 0:01:41]} 25. Rf3 {[%clk 0:02:09]}  Qxd4 {[%clk 0:01:30]} 26. Bh7+ {[%clk 0:01:55]}  Kh8 {[%clk 0:01:19]} 27. Ng6+ {[%clk 0:01:18]}  Kxh7 {[%clk 0:00:57]} 28. Nxf8+ {[%clk 0:01:13]}  Kg8 {[%clk 0:00:57]} 29. Qh7+ {[%clk 0:00:46]}  Kxf8 {[%clk 0:00:55]} 30. h4 {[%clk 0:00:40]}  Nd5 {[%clk 0:00:37]} 31. Qh8+ {[%clk 0:00:29]}  Ke7 {[%clk 0:00:37]} 32. Rxf7+ {[%clk 0:00:30]}  Kxf7 {[%clk 0:00:37]} 33. Qxd8 {[%clk 0:00:30]}  Qe5 {[%clk 0:00:28]} 34. Qc8 {[%clk 0:00:22]}  Qe7 {[%clk 0:00:25]} 35. g3 {[%clk 0:00:20]}  Nf6 {[%clk 0:00:20]} 36. Qf5 {[%clk 0:00:18]}  Qd7 {[%clk 0:00:19]} 37. Qa5 {[%clk 0:00:17]}  b6 {[%clk 0:00:18]} 38. Qc3 {[%clk 0:00:17]}  c5 {[%clk 0:00:18]} 39. Qb3+ {[%clk 0:00:17]}  Qd5 {[%clk 0:00:18]} 40. Qa3 {[%clk 0:00:18]}  a5 {[%clk 0:00:18]} 41. Qc3 {[%clk 0:00:17]}  c4 {[%clk 0:00:18]} 42. Qe3 {[%clk 0:00:16]}  b5 {[%clk 0:00:18]} 43. Qa7+ {[%clk 0:00:16]}  Kg6 {[%clk 0:00:17]} 44. Qxa5 {[%clk 0:00:17]}  Ne4 {[%clk 0:00:17]} 45. Qb6+ {[%clk 0:00:15]}  Kh7 {[%clk 0:00:18]} 46. Qe3 {[%clk 0:00:15]}  Qd3 {[%clk 0:00:17]} 47. Qf4 {[%clk 0:00:14]}  Nd2 {[%clk 0:00:18]} 48. Kg2 {[%clk 0:00:13]}  b4 {[%clk 0:00:18]} 49. Kh3 {[%clk 0:00:08]}  c3 {[%clk 0:00:18]} 50. bxc3 {[%clk 0:00:08]}  bxc3 {[%clk 0:00:19]} 51. h5 {[%clk 0:00:06]}  c2 {[%clk 0:00:18]} 0-1


[Site "https://www.chess.com"]

[Event "Titled Tuesday Blitz April 19 Late 2022"]
[White "Wagner, Dinara"]
[Black "Koziorowicz, Michal"]
[WhiteFideId "24157570"]
[BlackFideId "21809194"]
[WhiteElo "2510"]
[BlackElo "2638"]
[Result "0-1"]
[Round "08"]
[TimeControl "180+1"]
[Date "2022.04.19"]
[WhiteClock "0:00:03"]
[BlackClock "0:01:21"]

1. d4 {[%clk 0:03:00]}  f5 {[%clk 0:02:55]} 2. c4 {[%clk 0:02:58]}  Nf6 {[%clk 0:02:56]} 3. g3 {[%clk 0:02:58]}  e6 {[%clk 0:02:56]} 4. Bg2 {[%clk 0:02:57]}  Be7 {[%clk 0:02:57]} 5. Nf3 {[%clk 0:02:57]}  O-O {[%clk 0:02:57]} 6. Nc3 {[%clk 0:02:57]}  d6 {[%clk 0:02:58]} 7. O-O {[%clk 0:02:57]}  Ne4 {[%clk 0:02:58]} 8. Qc2 {[%clk 0:02:55]}  Nxc3 {[%clk 0:02:58]} 9. Qxc3 {[%clk 0:02:56]}  a5 {[%clk 0:02:58]} 10. Re1 {[%clk 0:02:51]}  Nc6 {[%clk 0:02:58]} 11. e4 {[%clk 0:02:41]}  e5 {[%clk 0:02:31]} 12. d5 {[%clk 0:02:32]}  fxe4 {[%clk 0:02:21]} 13. Rxe4 {[%clk 0:02:30]}  Bf5 {[%clk 0:02:21]} 14. Re1 {[%clk 0:02:29]}  Nb4 {[%clk 0:02:20]} 15. Re2 {[%clk 0:02:08]}  Qe8 {[%clk 0:02:12]} 16. Bd2 {[%clk 0:01:51]}  Qh5 {[%clk 0:02:11]} 17. a3 {[%clk 0:01:46]}  Nd3 {[%clk 0:02:08]} 18. Re3 {[%clk 0:01:46]}  Nc5 {[%clk 0:02:08]} 19. Rae1 {[%clk 0:01:39]}  a4 {[%clk 0:02:02]} 20. Bc1 {[%clk 0:01:39]}  Bf6 {[%clk 0:01:59]} 21. Nd2 {[%clk 0:01:35]}  e4 {[%clk 0:01:53]} 22. Qc2 {[%clk 0:01:34]}  Bd4 {[%clk 0:01:53]} 23. Nf1 {[%clk 0:00:57]}  Nd3 {[%clk 0:01:40]} 24. Qd1 {[%clk 0:00:49]}  Bg4 {[%clk 0:01:38]} 25. f3 {[%clk 0:00:40]}  Rxf3 {[%clk 0:01:30]} 26. Bxf3 {[%clk 0:00:32]}  Bxf3 {[%clk 0:01:30]} 27. Qd2 {[%clk 0:00:29]}  Rf8 {[%clk 0:01:29]} 28. h4 {[%clk 0:00:20]}  Qg4 {[%clk 0:01:29]} 29. Kh2 {[%clk 0:00:20]}  Nxe1 {[%clk 0:01:29]} 30. Qxd4 {[%clk 0:00:18]}  Bg2 {[%clk 0:01:20]} 31. Rxe1 {[%clk 0:00:03]}  Qh3+ {[%clk 0:01:20]} 32. Kg1 {[%clk 0:00:03]}  Qh1# {[%clk 0:01:21]} 0-1


[Site "https://www.chess.com"]

[Event "Titled Tuesday Blitz April 19 Late 2022"]
[White "Esipenko, Andrey"]
[Black "Sanal, Vahap"]
[WhiteFideId "24175439"]
[BlackFideId "6300545"]
[WhiteElo "2617"]
[BlackElo "2603"]
[Result "1-0"]
[Round "08"]
[TimeControl "180+1"]
[Date "2022.04.19"]
[WhiteClock "0:00:05"]
[BlackClock "0:00:07"]

1. d4 {[%clk 0:03:00]}  Nf6 {[%clk 0:02:55]} 2. c4 {[%clk 0:03:01]}  g6 {[%clk 0:02:54]} 3. Nc3 {[%clk 0:03:01]}  Bg7 {[%clk 0:02:55]} 4. e4 {[%clk 0:03:01]}  d6 {[%clk 0:02:56]} 5. Be2 {[%clk 0:02:59]}  O-O {[%clk 0:02:56]} 6. h4 {[%clk 0:03:00]}  h5 {[%clk 0:02:53]} 7. Bg5 {[%clk 0:03:00]}  Nbd7 {[%clk 0:02:50]} 8. Qd2 {[%clk 0:02:59]}  c5 {[%clk 0:02:50]} 9. d5 {[%clk 0:02:58]}  a6 {[%clk 0:02:50]} 10. a4 {[%clk 0:02:58]}  Re8 {[%clk 0:02:48]} 11. Nh3 {[%clk 0:02:57]}  e6 {[%clk 0:02:48]} 12. f3 {[%clk 0:02:57]}  exd5 {[%clk 0:02:48]} 13. cxd5 {[%clk 0:02:57]}  Qa5 {[%clk 0:02:48]} 14. O-O {[%clk 0:02:52]}  Ne5 {[%clk 0:02:45]} 15. Nf2 {[%clk 0:02:50]}  Nh7 {[%clk 0:02:43]} 16. Be3 {[%clk 0:02:46]}  Qd8 {[%clk 0:02:42]} 17. g3 {[%clk 0:02:41]}  Rb8 {[%clk 0:02:40]} 18. Kg2 {[%clk 0:02:40]}  Bd7 {[%clk 0:02:37]} 19. Rab1 {[%clk 0:02:29]}  f5 {[%clk 0:02:37]} 20. b4 {[%clk 0:02:27]}  c4 {[%clk 0:02:33]} 21. Bd4 {[%clk 0:02:15]}  b5 {[%clk 0:02:28]} 22. axb5 {[%clk 0:02:15]}  axb5 {[%clk 0:02:29]} 23. f4 {[%clk 0:02:14]}  Ng4 {[%clk 0:02:29]} 24. Bxg4 {[%clk 0:02:06]}  hxg4 {[%clk 0:02:28]} 25. Rbe1 {[%clk 0:02:00]}  Nf6 {[%clk 0:02:05]} 26. Kh2 {[%clk 0:01:53]}  Bc8 {[%clk 0:01:59]} 27. Re2 {[%clk 0:01:37]}  fxe4 {[%clk 0:01:35]} 28. Nfxe4 {[%clk 0:01:36]}  Nxe4 {[%clk 0:01:34]} 29. Nxe4 {[%clk 0:01:30]}  Bf5 {[%clk 0:01:33]} 30. Bxg7 {[%clk 0:01:26]}  Kxg7 {[%clk 0:01:32]} 31. Qb2+ {[%clk 0:01:01]}  Kh6 {[%clk 0:01:32]} 32. Ng5 {[%clk 0:01:02]}  Rxe2+ {[%clk 0:01:26]} 33. Qxe2 {[%clk 0:01:03]}  Qf6 {[%clk 0:01:26]} 34. Re1 {[%clk 0:01:00]}  Kg7 {[%clk 0:01:08]} 35. Qe3 {[%clk 0:00:40]}  Ra8 {[%clk 0:01:05]} 36. Re2 {[%clk 0:00:37]}  Bd3 {[%clk 0:01:02]} 37. Qb6 {[%clk 0:00:25]}  Bxe2 {[%clk 0:00:30]} 38. Qb7+ {[%clk 0:00:24]}  Kg8 {[%clk 0:00:23]} 39. Qxa8+ {[%clk 0:00:23]}  Kg7 {[%clk 0:00:17]} 40. Qb7+ {[%clk 0:00:21]}  Kg8 {[%clk 0:00:17]} 41. Qc8+ {[%clk 0:00:19]}  Kg7 {[%clk 0:00:16]} 42. Qd7+ {[%clk 0:00:19]}  Kg8 {[%clk 0:00:16]} 43. Qe8+ {[%clk 0:00:19]}  Kg7 {[%clk 0:00:16]} 44. Qxe2 {[%clk 0:00:19]}  c3 {[%clk 0:00:17]} 45. Qxb5 {[%clk 0:00:14]}  Qe7 {[%clk 0:00:10]} 46. Ne6+ {[%clk 0:00:13]}  Kh7 {[%clk 0:00:10]} 47. Qd3 {[%clk 0:00:10]}  Qa7 {[%clk 0:00:10]} 48. Qc2 {[%clk 0:00:05]}  Qe3 {[%clk 0:00:10]} 49. Ng5+ {[%clk 0:00:06]}  Kh6 {[%clk 0:00:10]} 50. Ne4 {[%clk 0:00:06]}  g5 {[%clk 0:00:07]} 51. hxg5+ {[%clk 0:00:05]}  Kh5 {[%clk 0:00:07]} 52. Nf6# {[%clk 0:00:05]} 1-0


[Site "https://www.chess.com"]

[Event "Titled Tuesday Blitz April 19 Late 2022"]
[White "Fedoseev, Vladimir"]
[Black "Zlatin, Alexander"]
[WhiteFideId "24130737"]
[BlackFideId "2810549"]
[WhiteElo "2726"]
[BlackElo "2228"]
[Result "1-0"]
[Round "08"]
[TimeControl "180+1"]
[Date "2022.04.19"]
[WhiteClock "0:00:15"]
[BlackClock "0:00:09"]

1. e4 {[%clk 0:02:58]}  e5 {[%clk 0:02:59]} 2. d4 {[%clk 0:02:58]}  exd4 {[%clk 0:02:57]} 3. c3 {[%clk 0:02:59]}  d5 {[%clk 0:02:50]} 4. exd5 {[%clk 0:02:51]}  Qxd5 {[%clk 0:02:48]} 5. Nf3 {[%clk 0:02:47]}  Bg4 {[%clk 0:02:42]} 6. Qa4+ {[%clk 0:02:30]}  Nc6 {[%clk 0:02:36]} 7. Nxd4 {[%clk 0:02:26]}  O-O-O {[%clk 0:02:34]} 8. Be3 {[%clk 0:02:24]}  Bc5 {[%clk 0:02:27]} 9. h3 {[%clk 0:01:38]}  Bh5 {[%clk 0:02:15]} 10. Nd2 {[%clk 0:01:32]}  Bxd4 {[%clk 0:02:12]} 11. cxd4 {[%clk 0:01:30]}  Nxd4 {[%clk 0:02:06]} 12. Rc1 {[%clk 0:01:30]}  Nc6 {[%clk 0:01:23]} 13. Rc5 {[%clk 0:01:14]}  Qd6 {[%clk 0:01:09]} 14. Rxh5 {[%clk 0:01:12]}  Nf6 {[%clk 0:01:10]} 15. Rf5 {[%clk 0:00:20]}  Rhe8 {[%clk 0:01:08]} 16. Nc4 {[%clk 0:00:20]}  Rxe3+ {[%clk 0:00:49]} 17. fxe3 {[%clk 0:00:20]}  Qg3+ {[%clk 0:00:48]} 18. Rf2 {[%clk 0:00:20]}  Kb8 {[%clk 0:00:37]} 19. Be2 {[%clk 0:00:19]}  Ne4 {[%clk 0:00:36]} 20. O-O {[%clk 0:00:19]}  Nxf2 {[%clk 0:00:28]} 21. Rxf2 {[%clk 0:00:20]}  f5 {[%clk 0:00:24]} 22. Bf3 {[%clk 0:00:20]}  Ne7 {[%clk 0:00:19]} 23. Qb5 {[%clk 0:00:19]}  b6 {[%clk 0:00:19]} 24. Qe5 {[%clk 0:00:17]}  Qxe5 {[%clk 0:00:18]} 25. Nxe5 {[%clk 0:00:18]}  c5 {[%clk 0:00:18]} 26. e4 {[%clk 0:00:16]}  f4 {[%clk 0:00:17]} 27. Bg4 {[%clk 0:00:15]}  g5 {[%clk 0:00:17]} 28. Nf7 {[%clk 0:00:16]}  Rg8 {[%clk 0:00:16]} 29. Rd2 {[%clk 0:00:16]}  Nc6 {[%clk 0:00:16]} 30. Rd6 {[%clk 0:00:15]}  Nd4 {[%clk 0:00:15]} 31. e5 {[%clk 0:00:15]}  Kc7 {[%clk 0:00:15]} 32. e6 {[%clk 0:00:16]}  Re8 {[%clk 0:00:13]} 33. Rd7+ {[%clk 0:00:15]}  Kc6 {[%clk 0:00:13]} 34. Ne5+ {[%clk 0:00:16]}  Kb5 {[%clk 0:00:13]} 35. e7 {[%clk 0:00:16]}  c4 {[%clk 0:00:08]} 36. Bh5 {[%clk 0:00:16]}  Rg8 {[%clk 0:00:07]} 37. e8=Q {[%clk 0:00:16]}  Rxe8 {[%clk 0:00:08]} 38. Bxe8 {[%clk 0:00:16]}  Nc2 {[%clk 0:00:09]} 39. Rc7+ {[%clk 0:00:15]} 1-0


[Site "https://www.chess.com"]

[Event "Titled Tuesday Blitz April 19 Late 2022"]
[White "Ferreira, Vitor Hugo Vieira"]
[Black "Bowden, Karl"]
[WhiteFideId "2119765"]
[BlackFideId "400548"]
[WhiteElo "2165"]
[BlackElo "2347"]
[Result "0-1"]
[Round "08"]
[TimeControl "180+1"]
[Date "2022.04.19"]
[WhiteClock "0:01:01"]
[BlackClock "0:00:19"]

1. d4 {[%clk 0:03:00]}  Nf6 {[%clk 0:02:59]} 2. c4 {[%clk 0:03:00]}  c5 {[%clk 0:02:59]} 3. d5 {[%clk 0:02:59]}  Ne4 {[%clk 0:03:00]} 4. Qc2 {[%clk 0:02:58]}  Qa5+ {[%clk 0:03:00]} 5. Nd2 {[%clk 0:02:56]}  Nd6 {[%clk 0:02:58]} 6. e4 {[%clk 0:02:54]}  g6 {[%clk 0:02:58]} 7. e5 {[%clk 0:02:50]}  Nf5 {[%clk 0:02:57]} 8. Nf3 {[%clk 0:02:49]}  Bg7 {[%clk 0:02:55]} 9. Bd3 {[%clk 0:02:48]}  d6 {[%clk 0:02:54]} 10. exd6 {[%clk 0:02:47]}  exd6 {[%clk 0:02:54]} 11. O-O {[%clk 0:02:45]}  O-O {[%clk 0:02:54]} 12. a3 {[%clk 0:02:41]}  Qc7 {[%clk 0:02:48]} 13. Ne4 {[%clk 0:02:39]}  Nd7 {[%clk 0:02:26]} 14. Bf4 {[%clk 0:02:31]}  Ne5 {[%clk 0:02:26]} 15. Nxe5 {[%clk 0:02:31]}  dxe5 {[%clk 0:02:25]} 16. Bd2 {[%clk 0:02:28]}  Nd4 {[%clk 0:02:21]} 17. Qd1 {[%clk 0:02:28]}  f5 {[%clk 0:02:18]} 18. Nc3 {[%clk 0:02:25]}  e4 {[%clk 0:01:51]} 19. Bb1 {[%clk 0:02:23]}  Bd7 {[%clk 0:01:50]} 20. b4 {[%clk 0:02:09]}  b6 {[%clk 0:01:48]} 21. Ra2 {[%clk 0:02:09]}  Rae8 {[%clk 0:01:39]} 22. Ne2 {[%clk 0:01:56]}  f4 {[%clk 0:01:25]} 23. Nc3 {[%clk 0:01:39]}  e3 {[%clk 0:01:08]} 24. fxe3 {[%clk 0:01:38]}  fxe3 {[%clk 0:01:08]} 25. Rxf8+ {[%clk 0:01:39]}  Bxf8 {[%clk 0:01:02]} 26. Be1 {[%clk 0:01:37]}  Bd6 {[%clk 0:00:36]} 27. g3 {[%clk 0:01:27]}  e2 {[%clk 0:00:29]} 28. Nxe2 {[%clk 0:01:19]}  Bg4 {[%clk 0:00:26]} 29. Bd3 {[%clk 0:01:08]}  Qe7 {[%clk 0:00:24]} 30. Kf1 {[%clk 0:01:05]}  Bh3+ {[%clk 0:00:21]} 31. Kg1 {[%clk 0:01:01]}  Qe3+ {[%clk 0:00:19]} 0-1


[Site "https://www.chess.com"]

[Event "Titled Tuesday Blitz April 19 Late 2022"]
[White "Gatterer, Florian"]
[Black "Joubert, Dantelle"]
[WhiteFideId "811688"]
[BlackFideId "14310813"]
[WhiteElo "2218"]
[BlackElo "1507"]
[Result "1-0"]
[Round "08"]
[TimeControl "180+1"]
[Date "2022.04.19"]
[WhiteClock "0:00:12"]
[BlackClock "0:00:01"]

1. f4 {[%clk 0:03:00]}  e5 {[%clk 0:02:58]} 2. fxe5 {[%clk 0:03:01]}  d6 {[%clk 0:02:57]} 3. exd6 {[%clk 0:03:02]}  Bxd6 {[%clk 0:02:57]} 4. Nf3 {[%clk 0:03:02]}  Nc6 {[%clk 0:02:55]} 5. g3 {[%clk 0:02:56]}  Bg4 {[%clk 0:02:46]} 6. Bg2 {[%clk 0:02:52]}  Qd7 {[%clk 0:02:32]} 7. d3 {[%clk 0:02:39]}  O-O-O {[%clk 0:02:23]} 8. e4 {[%clk 0:02:37]}  Bc5 {[%clk 0:01:59]} 9. Nc3 {[%clk 0:02:26]}  f5 {[%clk 0:01:52]} 10. Bg5 {[%clk 0:02:23]}  Re8 {[%clk 0:01:48]} 11. Qd2 {[%clk 0:02:13]}  h6 {[%clk 0:01:30]} 12. Be3 {[%clk 0:01:49]}  fxe4 {[%clk 0:01:12]} 13. Nxe4 {[%clk 0:01:43]}  Bxe3 {[%clk 0:01:07]} 14. Qxe3 {[%clk 0:01:43]}  Nf6 {[%clk 0:01:01]} 15. O-O-O {[%clk 0:01:27]}  Nd5 {[%clk 0:00:56]} 16. Qd2 {[%clk 0:01:17]}  Rhf8 {[%clk 0:00:53]} 17. Rhf1 {[%clk 0:01:11]}  Ndb4 {[%clk 0:00:24]} 18. Kb1 {[%clk 0:00:56]}  Bxf3 {[%clk 0:00:20]} 19. Rxf3 {[%clk 0:00:47]}  Rxf3 {[%clk 0:00:18]} 20. Bxf3 {[%clk 0:00:48]}  Nd4 {[%clk 0:00:18]} 21. Qxb4 {[%clk 0:00:37]}  Nxf3 {[%clk 0:00:17]} 22. Nc5 {[%clk 0:00:19]}  Qc6 {[%clk 0:00:17]} 23. Qg4+ {[%clk 0:00:19]}  Kb8 {[%clk 0:00:11]} 24. Nb3 {[%clk 0:00:19]}  a5 {[%clk 0:00:11]} 25. Nxa5 {[%clk 0:00:14]}  Qd5 {[%clk 0:00:11]} 26. Nb3 {[%clk 0:00:14]}  Ne5 {[%clk 0:00:10]} 27. Qe4 {[%clk 0:00:13]}  Qxe4 {[%clk 0:00:10]} 28. dxe4 {[%clk 0:00:14]}  Nf3 {[%clk 0:00:10]} 29. h3 {[%clk 0:00:12]}  Rxe4 {[%clk 0:00:09]} 30. Rd8+ {[%clk 0:00:11]}  Ka7 {[%clk 0:00:08]} 31. a3 {[%clk 0:00:11]}  Re1+ {[%clk 0:00:07]} 32. Ka2 {[%clk 0:00:11]}  Rg1 {[%clk 0:00:07]} 33. g4 {[%clk 0:00:10]}  Rg3 {[%clk 0:00:06]} 34. Rd7 {[%clk 0:00:10]}  Rxh3 {[%clk 0:00:05]} 35. Rxc7 {[%clk 0:00:10]}  Ne5 {[%clk 0:00:03]} 36. Rxg7 {[%clk 0:00:09]}  Rg3 {[%clk 0:00:04]} 37. Nc5 {[%clk 0:00:09]}  Nxg4 {[%clk 0:00:03]} 38. Rxb7+ {[%clk 0:00:09]}  Ka8 {[%clk 0:00:03]} 39. Rg7 {[%clk 0:00:10]}  Rg2 {[%clk 0:00:03]} 40. Nd7 {[%clk 0:00:09]}  Ne3 {[%clk 0:00:03]} 41. Nb6+ {[%clk 0:00:09]}  Kb8 {[%clk 0:00:02]} 42. Rxg2 {[%clk 0:00:10]}  Nxg2 {[%clk 0:00:02]} 43. Nd7+ {[%clk 0:00:11]}  Kc7 {[%clk 0:00:01]} 44. Nf6 {[%clk 0:00:12]} 1-0


[Site "https://www.chess.com"]

[Event "Titled Tuesday Blitz April 19 Late 2022"]
[White "Ivanisevic, Ivan"]
[Black "Kollars, Dmitrij"]
[WhiteFideId "912417"]
[BlackFideId "12909572"]
[WhiteElo "2495"]
[BlackElo "2584"]
[Result "0-1"]
[Round "08"]
[TimeControl "180+1"]
[Date "2022.04.19"]
[WhiteClock "0:00:03"]
[BlackClock "0:00:11"]

1. d4 {[%clk 0:02:51]}  Nf6 {[%clk 0:03:00]} 2. c4 {[%clk 0:02:51]}  e6 {[%clk 0:03:00]} 3. Nc3 {[%clk 0:02:51]}  Bb4 {[%clk 0:02:57]} 4. Qc2 {[%clk 0:02:51]}  b6 {[%clk 0:02:56]} 5. e4 {[%clk 0:02:49]}  c5 {[%clk 0:02:57]} 6. d5 {[%clk 0:02:50]}  Qe7 {[%clk 0:02:57]} 7. Ne2 {[%clk 0:02:49]}  exd5 {[%clk 0:02:56]} 8. exd5 {[%clk 0:02:49]}  O-O {[%clk 0:02:57]} 9. Bd2 {[%clk 0:02:45]}  d6 {[%clk 0:02:53]} 10. f3 {[%clk 0:02:20]}  Nbd7 {[%clk 0:02:52]} 11. a3 {[%clk 0:02:15]}  Ba5 {[%clk 0:02:52]} 12. O-O-O {[%clk 0:02:14]}  Re8 {[%clk 0:02:52]} 13. Ng3 {[%clk 0:02:11]}  Qd8 {[%clk 0:02:52]} 14. h3 {[%clk 0:01:51]}  a6 {[%clk 0:02:50]} 15. f4 {[%clk 0:01:46]}  Nf8 {[%clk 0:02:31]} 16. Bd3 {[%clk 0:01:39]}  b5 {[%clk 0:02:23]} 17. cxb5 {[%clk 0:01:40]}  axb5 {[%clk 0:02:23]} 18. Bxb5 {[%clk 0:01:39]}  Bd7 {[%clk 0:02:22]} 19. Bc6 {[%clk 0:01:36]}  Rb8 {[%clk 0:02:20]} 20. Rhe1 {[%clk 0:01:25]}  Qb6 {[%clk 0:02:03]} 21. Nge4 {[%clk 0:01:11]}  Nxe4 {[%clk 0:01:55]} 22. Nxe4 {[%clk 0:01:12]}  Bxd2+ {[%clk 0:01:54]} 23. Rxd2 {[%clk 0:01:08]}  f5 {[%clk 0:01:35]} 24. Nf6+ {[%clk 0:00:29]}  gxf6 {[%clk 0:01:34]} 25. Rxe8 {[%clk 0:00:27]}  Rxe8 {[%clk 0:01:35]} 26. Bxd7 {[%clk 0:00:23]}  Nxd7 {[%clk 0:01:33]} 27. Qxf5 {[%clk 0:00:22]}  Qb3 {[%clk 0:01:24]} 28. Qg4+ {[%clk 0:00:14]}  Kh8 {[%clk 0:01:03]} 29. Rd1 {[%clk 0:00:14]}  Qe3+ {[%clk 0:00:41]} 30. Kc2 {[%clk 0:00:14]}  Qe4+ {[%clk 0:00:41]} 31. Kc1 {[%clk 0:00:13]}  f5 {[%clk 0:00:39]} 32. Qg5 {[%clk 0:00:11]}  Rg8 {[%clk 0:00:34]} 33. Qh4 {[%clk 0:00:11]}  Qe8 {[%clk 0:00:15]} 34. Re1 {[%clk 0:00:10]}  Qg6 {[%clk 0:00:11]} 35. Re7 {[%clk 0:00:10]}  Nf6 {[%clk 0:00:09]} 36. g3 {[%clk 0:00:10]}  Ne4 {[%clk 0:00:08]} 37. g4 {[%clk 0:00:10]}  fxg4 {[%clk 0:00:07]} 38. hxg4 {[%clk 0:00:10]}  Nf6 {[%clk 0:00:05]} 39. g5 {[%clk 0:00:10]}  Nxd5 {[%clk 0:00:05]} 40. Rd7 {[%clk 0:00:09]}  Ne3 {[%clk 0:00:05]} 41. Kd2 {[%clk 0:00:08]}  Nc4+ {[%clk 0:00:06]} 42. Kc3 {[%clk 0:00:08]}  Nb6 {[%clk 0:00:06]} 43. Rb7 {[%clk 0:00:06]}  Nd5+ {[%clk 0:00:06]} 44. Kd2 {[%clk 0:00:07]}  Re8 {[%clk 0:00:05]} 45. f5 {[%clk 0:00:06]}  Qxf5 {[%clk 0:00:06]} 46. g6 {[%clk 0:00:07]}  Qxg6 {[%clk 0:00:06]} 47. Qh2 {[%clk 0:00:03]}  Ne3 {[%clk 0:00:05]} 48. Kc3 {[%clk 0:00:03]}  Qe4 {[%clk 0:00:04]} 49. Qxd6 {[%clk 0:00:02]}  Nd1+ {[%clk 0:00:03]} 50. Kd2 {[%clk 0:00:02]}  Qxb7 {[%clk 0:00:03]} 51. Qd4+ {[%clk 0:00:02]}  cxd4 {[%clk 0:00:03]} 52. Kxd1 {[%clk 0:00:02]}  Qc7 {[%clk 0:00:04]} 53. Kd2 {[%clk 0:00:01]}  Qe5 {[%clk 0:00:05]} 54. Kd3 {[%clk 0:00:02]}  Qe3+ {[%clk 0:00:06]} 55. Kc4 {[%clk 0:00:03]}  d3 {[%clk 0:00:06]} 56. Kd5 {[%clk 0:00:03]}  d2 {[%clk 0:00:07]} 57. Kc6 {[%clk 0:00:04]}  d1=Q {[%clk 0:00:08]} 58. Kc7 {[%clk 0:00:04]}  Qdd4 {[%clk 0:00:09]} 59. Kb7 {[%clk 0:00:04]}  Qe6 {[%clk 0:00:10]} 60. Kc7 {[%clk 0:00:03]}  Qdd7# {[%clk 0:00:11]} 0-1


[Site "https://www.chess.com"]